fUST/lending_fUST_20251125
["ID","MTS","AMOUNT","RATE_DAILY","PERIOD"]
[394875337,1764046262758,156.67,1.4e-05,2]
[394875338,1764046263033,156.67,1.8e-05,2]
[394875339,1764046263315,156.67,2.2e-05,2]
[394875340,1764046263607,156.67,2.6e-05,2]
[394875341,1764046263912,156.67,3e-05,2]
[394875342,1764046264198,156.67,3.4e-05,2]
[394875346,1764046310430,1221.84,0.0002,30]
[394875350,1764046420774,16905.6261987,6.182e-05,2]
[394875353,1764046640950,206.68240134,6.706e-05,2]
[394875354,1764046649517,206.68240134,6.706e-05,2]
[394875355,1764046684169,260.0,6.2e-05,2]
[394875358,1764046855171,252.16581807,6.74e-05,2]
[394875359,1764046855876,-252.16581807,6.808e-05,2]
[394875360,1764046855898,-21.12666007,6.843e-05,2]
[394875361,1764046859309,-227.41394666,6.843e-05,2]
[394875364,1764046898579,-3.62521134,6.843e-05,2]
[394875365,1764046898602,-153.07954121,6.981e-05,2]
[394875366,1764046901832,-53.60286013,6.981e-05,2]
[394875367,1764046901854,-246.39713987,7.102e-05,2]
[394875368,1764046961375,3223.73733082,0.00014,10]
[394875369,1764046971669,6072.15318055,6.12e-05,2]
[394875370,1764046971696,1347.65499365,6.12e-05,2]
[394875371,1764047004776,-300.0,6.961e-05,2]
[394875372,1764047004798,-50.20696859,7.031e-05,2]
[394875373,1764047006809,-154.55999111,7.031e-05,2]
[394875374,1764047009138,-95.2330403,7.031e-05,2]
[394875375,1764047009160,-96.4494745,7.102e-05,2]
[394875376,1764047011833,-285.58313935,7.102e-05,2]
[394875377,1764047012983,-167.0,7.102e-05,2]
[394875379,1764047108590,-323.25610865,6.961e-05,2]
[394875380,1764047110416,-169.69070441,6.961e-05,2]
[394875381,1764047113040,-283.27542998,6.961e-05,2]
[394875382,1764047115184,-171.15173759,6.961e-05,2]
[394875383,1764047119273,-170.59340552,6.961e-05,2]
[394875384,1764047119298,-191.97854157,6.996e-05,2]
[394875385,1764047121662,-59.69223907,6.996e-05,2]
[394875386,1764047121684,-324.52060036,7.031e-05,2]
[394875387,1764047124499,-209.70794343,7.031e-05,2]
[394875388,1764047126742,-265.92996026,7.031e-05,2]
[394875389,1764047128861,-165.13651118,6.961e-05,2]
[394875390,1764047131087,-152.67237092,6.961e-05,2]
[394875391,1764047131109,-127.89691976,7.031e-05,2]
[394875392,1764047135035,-189.91196234,7.031e-05,2]
[394875393,1764047135058,-124.30759571,7.102e-05,2]
[394875394,1764047138307,-243.99467196,7.102e-05,2]
[394875395,1764047140372,-219.06421392,7.102e-05,2]
[394875396,1764047142425,-63.60090456,7.102e-05,2]
[394875397,1764047142447,-124.81913636,7.102e-05,2]
[394875398,1764047144007,-232.50700278,7.031e-05,2]
[394875399,1764047145732,-189.04362858,7.031e-05,2]
[394875400,1764047147937,-175.36913142,7.031e-05,2]
[394875401,1764047149930,-436.53663989,7.031e-05,2]
[394875402,1764047151198,1266.68114178,6.961e-05,2]
[394875403,1764047155713,-215.34911615,7.031e-05,2]
[394875404,1764047158756,-220.13191091,7.031e-05,2]
[394875405,1764047161951,-170.74272771,7.031e-05,2]
[394875406,1764047162885,-223.92074712,7.031e-05,2]
[394875407,1764047164254,-288.0,7.102e-05,2]
[394875408,1764047166204,-12.0,7.102e-05,2]
[394875409,1764047166227,-188.0,7.102e-05,2]
[394875410,1764047166449,1512.0,7.031e-05,2]
[394875411,1764047167555,-317.33567755,7.102e-05,2]
[394875412,1764047170149,-400.00000003,7.102e-05,2]
[394875413,1764047173969,-214.3709481,7.102e-05,2]
[394875414,1764047174391,594.66432242,7.031e-05,2]
[394875415,1764047176182,-80.29337432,7.102e-05,2]
[394875416,1764047176210,-219.07405377,7.102e-05,2]
[394875417,1764047178224,-80.92594623,7.102e-05,2]
[394875418,1764047178273,-182.66432245,7.103e-05,2]
[394875419,1764047180061,-317.33567755,7.103e-05,2]
[394875420,1764047180082,-9.5520311,7.103e-05,2]
[394875421,1764047182767,-169.87012045,7.103e-05,2]
[394875422,1764047184794,-320.57784845,7.103e-05,2]
[394875423,1764047184821,-79.42215152,7.103e-05,2]
[394875424,1764047187219,-275.98327706,7.103e-05,2]
[394875425,1764047189994,6462.91239503,7.032e-05,2]
[394875426,1764047190076,-156.81564143,7.103e-05,2]
[394875427,1764047190101,-16.43300307,7.103e-05,2]
[394875428,1764047192390,-209.84813309,7.103e-05,2]
[394875429,1764047195146,-209.26628569,7.103e-05,2]
[394875430,1764047195168,-73.61255589,7.103e-05,2]
[394875431,1764047197685,-221.88650138,7.103e-05,2]
[394875432,1764047197832,5796.93677586,7.032e-05,2]
[394875433,1764047201875,-204.50094273,7.103e-05,2]
[394875434,1764047201897,-148.68339762,7.103e-05,2]
[394875435,1764047203415,-4.05528623,7.103e-05,2]
[394875436,1764047203437,-269.74083309,7.103e-05,2]
[394875437,1764047205478,-163.49035014,7.103e-05,2]
[394875438,1764047210872,-69.1288816,7.103e-05,2]
[394875439,1764047210896,-299.59357797,7.103e-05,2]
[394875440,1764047213034,4203.07322414,7.032e-05,2]
[394875441,1764047213058,212.78378096,7.032e-05,2]
[394875442,1764047215571,-194.44154889,7.103e-05,2]
[394875443,1764047215594,-37.35507498,7.103e-05,2]
[394875444,1764047218256,-178.80593146,7.103e-05,2]
[394875445,1764047218277,-51.3048086,7.103e-05,2]
[394875446,1764047220196,-430.11074006,7.103e-05,2]
[394875447,1764047221017,3953.94964117,7.032e-05,2]
[394875448,1764047222745,-18.58445134,7.103e-05,2]
[394875449,1764047222770,-171.03292744,7.103e-05,2]
[394875450,1764047222800,300.0,7.102e-05,2]
[394875451,1764047222833,178.91,1e-05,2]
[394875452,1764047223210,178.91,1.6e-05,2]
[394875453,1764047223515,178.91,2.2e-05,2]
[394875454,1764047223799,178.91,2.8e-05,2]
[394875455,1764047225406,-216.62547841,7.103e-05,2]
[394875456,1764047227562,-114.10158511,7.103e-05,2]
[394875457,1764047227584,-43.40491276,7.103e-05,2]
[394875458,1764047230862,-342.49350213,7.103e-05,2]
[394875459,1764047233471,-114.10158511,7.103e-05,2]
[394875460,1764047233495,-51.74976629,7.103e-05,2]
[394875461,1764047236275,2451.74469252,7.032e-05,2]
[394875462,1764047236607,-231.14449367,7.103e-05,2]
[394875463,1764047239151,-219.12104108,7.103e-05,2]
[394875464,1764047239173,-8.87895892,7.103e-05,2]
[394875465,1764047240672,-235.53741966,7.103e-05,2]
[394875466,1764047244153,1757.06277919,7.032e-05,2]
[394875467,1764047248948,-255.58362142,7.103e-05,2]
[394875468,1764047248969,-286.67025335,7.103e-05,2]
[394875469,1764047252392,-213.32974665,7.103e-05,2]
[394875470,1764047252414,-64.39791848,7.103e-05,2]
[394875471,1764047254549,-203.19679978,7.103e-05,2]
[394875472,1764047257699,-232.40528174,7.103e-05,2]
[394875473,1764047257720,-36.9598327,7.103e-05,2]
[394875474,1764047260286,608.82910616,7.032e-05,2]
[394875475,1764047260312,125.05533335,7.032e-05,2]
[394875476,1764047261443,-274.67365256,7.103e-05,2]
[394875477,1764047267677,-189.84567251,7.103e-05,2]
[394875478,1764047267700,-94.64819708,7.122e-05,2]
[394875479,1764047267890,189.84567251,7.032e-05,2]
[394875480,1764047272066,-173.84884742,7.121e-05,2]
[394875481,1764047274118,-167.07545631,7.121e-05,2]
[394875482,1764047277198,-220.54876471,7.121e-05,2]
[394875483,1764047279768,-359.36207344,7.121e-05,2]
[394875484,1764047281275,-226.56120338,7.121e-05,2]
[394875485,1764047283402,-52.60365474,7.121e-05,2]
[394875486,1764047283424,-300.0,7.121e-05,2]
[394875487,1764047283445,-41.15579087,7.122e-05,2]
[394875488,1764047283648,279.16485812,7.05e-05,2]
[394875489,1764047286300,-284.93794799,7.122e-05,2]
[394875490,1764047289485,-147.35599894,7.122e-05,2]
[394875491,1764047289518,-266.48873607,7.122e-05,2]
[394875492,1764047291558,-134.45546811,7.122e-05,2]
[394875493,1764047291582,-165.54453189,7.122e-05,2]
[394875494,1764047292100,5009.06050987,7.051e-05,2]
[394875495,1764047294084,-197.74581279,7.122e-05,2]
[394875496,1764047295665,-0.12202918,7.122e-05,2]
[394875497,1764047295694,-171.39855765,7.122e-05,2]
[394875498,1764047297674,-270.75978913,7.122e-05,2]
[394875499,1764047308043,4990.94949013,7.051e-05,2]
[394875500,1764047308064,561.43654875,7.051e-05,2]
[394875501,1764047348224,-300.0,7.121e-05,2]
[394875502,1764047348252,-500.0,7.121e-05,2]
[394875503,1764047348278,-500.0,7.121e-05,2]
[394875504,1764047348304,-500.0,7.121e-05,2]
[394875505,1764047348329,-500.0,7.121e-05,2]
[394875506,1764047348356,-500.0,7.121e-05,2]
[394875507,1764047348381,-500.0,7.121e-05,2]
[394875508,1764047348406,-500.0,7.121e-05,2]
[394875509,1764047348432,-500.0,7.121e-05,2]
[394875510,1764047348458,-500.0,7.121e-05,2]
[394875511,1764047348483,-500.0,7.121e-05,2]
[394875512,1764047348509,-500.0,7.121e-05,2]
[394875513,1764047348535,-500.0,7.121e-05,2]
[394875514,1764047348563,-500.0,7.121e-05,2]
[394875515,1764047348595,-500.0,7.121e-05,2]
[394875516,1764047348623,-500.0,7.121e-05,2]
[394875517,1764047348650,-500.0,7.121e-05,2]
[394875518,1764047348676,-500.0,7.121e-05,2]
[394875519,1764047348703,-500.0,7.121e-05,2]
[394875520,1764047348733,-500.0,7.121e-05,2]
[394875521,1764047348758,-500.0,7.121e-05,2]
[394875522,1764047348784,-500.0,7.121e-05,2]
[394875523,1764047348810,-500.0,7.121e-05,2]
[394875524,1764047348836,-26.69399246,7.121e-05,2]
[394875525,1764047402179,300.0,7.12e-05,2]
[394875534,1764047432492,-322.0,7.121e-05,2]
[394875535,1764047432552,-151.30600754,7.121e-05,2]
[394875536,1764047432561,-500.0,7.121e-05,2]
[394875537,1764047432571,-500.0,7.121e-05,2]
[394875538,1764047432580,-500.0,7.121e-05,2]
[394875539,1764047432590,-500.0,7.121e-05,2]
[394875540,1764047432600,-500.0,7.121e-05,2]
[394875541,1764047432610,-500.0,7.121e-05,2]
[394875542,1764047432619,-500.0,7.121e-05,2]
[394875543,1764047432628,-500.0,7.121e-05,2]
[394875544,1764047432638,-500.0,7.121e-05,2]
[394875545,1764047432648,-500.0,7.121e-05,2]
[394875546,1764047432658,-500.0,7.121e-05,2]
[394875547,1764047432667,-500.0,7.121e-05,2]
[394875548,1764047432678,-500.0,7.121e-05,2]
[394875549,1764047432688,-500.0,7.121e-05,2]
[394875550,1764047432697,-500.0,7.121e-05,2]
[394875551,1764047432707,-500.0,7.121e-05,2]
[394875552,1764047432717,-500.0,7.121e-05,2]
[394875553,1764047432726,-500.0,7.121e-05,2]
[394875554,1764047432735,-500.0,7.121e-05,2]
[394875555,1764047432744,-499.05164383,7.121e-05,2]
[394875556,1764047432754,-500.0,7.121e-05,2]
[394875557,1764047432763,-500.0,7.121e-05,2]
[394875558,1764047432773,-972.94485989,7.121e-05,2]
[394875559,1764047432782,-972.94485989,7.121e-05,2]
[394875560,1764047432792,-972.94485989,7.121e-05,2]
[394875561,1764047432802,-972.94485989,7.121e-05,2]
[394875562,1764047432812,-972.94485989,7.121e-05,2]
[394875563,1764047432821,-972.94485989,7.121e-05,2]
[394875564,1764047432831,-972.94485989,7.121e-05,2]
[394875565,1764047432841,-972.94485989,7.121e-05,2]
[394875566,1764047432851,-972.94485989,7.121e-05,2]
[394875567,1764047432863,-972.94485989,7.121e-05,2]
[394875568,1764047432874,-972.94485989,7.121e-05,2]
[394875569,1764047432883,-251.09467839,7.124e-05,2]
[394875570,1764047432893,-28809.35494377,7.126e-05,2]
[394875588,1764047438468,-7830.49267469,7.126e-05,2]
[394875590,1764047438480,-3975.3757086,7.126e-05,2]
[394875593,1764047438491,-1024.6242914,7.126e-05,2]
[394875595,1764047438502,-263.53913976,7.126e-05,2]
[394875596,1764047438513,-3625.98798208,7.126e-05,2]
[394875597,1764047438524,-507.091205,7.126e-05,2]
[394875598,1764047438535,-656.983583,7.126e-05,2]
[394875618,1764047441742,-113.47023903,7.126e-05,2]
[394875619,1764047441759,-13279.35782885,7.126e-05,2]
[394875620,1764047441770,-2580.99930604,7.126e-05,2]
[394875654,1764047459736,174.38236552,7.055e-05,2]
[394875655,1764047462509,300.0,7.125e-05,2]
[394875656,1764047467617,174.38236555,7.055e-05,2]
[394875658,1764047502694,270.471,6.984e-05,2]
[394875660,1764047522367,300.0,7.125e-05,2]
[394875667,1764047543500,681.73836333,7.125e-05,2]
[394875669,1764047543539,681.73836333,7.125e-05,2]
[394875671,1764047543583,681.73836333,7.125e-05,2]
[394875672,1764047543619,681.73836333,7.125e-05,2]
[394875673,1764047543655,681.73836333,7.125e-05,2]
[394875674,1764047543692,681.73836333,7.125e-05,2]
[394875677,1764047543729,681.73836333,7.125e-05,2]
[394875678,1764047543772,681.73836333,7.125e-05,2]
[394875679,1764047543809,681.73836333,7.125e-05,2]
[394875680,1764047543858,681.73836333,7.125e-05,2]
[394875681,1764047543897,681.73836333,7.125e-05,2]
[394875682,1764047543946,681.73836333,7.125e-05,2]
[394875683,1764047543988,599.91390897,7.125e-05,2]
[394875684,1764047544022,81.82445436,7.125e-05,2]
[394875685,1764047544061,681.73836333,7.125e-05,2]
[394875686,1764047544112,681.73836333,7.125e-05,2]
[394875687,1764047544195,681.73836333,7.125e-05,2]
[394875688,1764047544235,681.73836333,7.125e-05,2]
[394875689,1764047544287,681.73836333,7.125e-05,2]
[394875690,1764047544326,681.73836333,7.125e-05,2]
[394875691,1764047544366,681.73836333,7.125e-05,2]
[394875692,1764047544408,681.73836333,7.125e-05,2]
[394875693,1764047544446,681.73836333,7.125e-05,2]
[394875694,1764047544489,681.73836333,7.125e-05,2]
[394875695,1764047544532,681.73836333,7.125e-05,2]
[394875696,1764047544571,681.73836333,7.125e-05,2]
[394875697,1764047544611,681.73836333,7.125e-05,2]
[394875698,1764047544659,681.73836333,7.125e-05,2]
[394875699,1764047544702,373.84845902,7.125e-05,2]
[394875700,1764047544733,307.88990431,7.125e-05,2]
[394875701,1764047544777,681.73836333,7.125e-05,2]
[394875702,1764047544831,681.73836333,7.125e-05,2]
[394875703,1764047544867,681.73836333,7.125e-05,2]
[394875704,1764047544904,681.73836333,7.125e-05,2]
[394875705,1764047544947,681.73836333,7.125e-05,2]
[394875706,1764047545010,681.73836333,7.125e-05,2]
[394875707,1764047545057,681.73836333,7.125e-05,2]
[394875708,1764047545095,681.73836333,7.125e-05,2]
[394875709,1764047545132,681.73836333,7.125e-05,2]
[394875710,1764047545175,681.73836333,7.125e-05,2]
[394875711,1764047545224,681.73836333,7.125e-05,2]
[394875712,1764047545263,681.73836333,7.125e-05,2]
[394875713,1764047545302,681.73836333,7.125e-05,2]
[394875714,1764047545340,681.73836333,7.125e-05,2]
[394875715,1764047545568,147.78300907,7.125e-05,2]
[394875716,1764047545603,533.95535426,7.125e-05,2]
[394875717,1764047545642,681.73836333,7.125e-05,2]
[394875718,1764047545678,681.73836333,7.125e-05,2]
[394875719,1764047545722,681.73836333,7.125e-05,2]
[394875720,1764047545766,681.73836333,7.125e-05,2]
[394875721,1764047545825,681.73836333,7.125e-05,2]
[394875722,1764047545864,681.73836333,7.125e-05,2]
[394875723,1764047545915,681.73836333,7.125e-05,2]
[394875724,1764047545959,681.73836333,7.125e-05,2]
[394875725,1764047545995,681.73836333,7.125e-05,2]
[394875732,1764047560316,690.05224581,7.125e-05,2]
[394875733,1764047560353,690.05224581,7.125e-05,2]
[394875734,1764047560389,690.05224581,7.125e-05,2]
[394875735,1764047560426,690.05224581,7.125e-05,2]
[394875736,1764047560466,570.20039253,7.125e-05,2]
[394875737,1764047560496,119.85185328,7.125e-05,2]
[394875738,1764047560541,690.05224581,7.125e-05,2]
[394875739,1764047560592,690.05224581,7.125e-05,2]
[394875740,1764047560630,690.05224581,7.125e-05,2]
[394875741,1764047560666,690.05224581,7.125e-05,2]
[394875742,1764047560882,690.05224581,7.125e-05,2]
[394875743,1764047560925,690.05224581,7.125e-05,2]
[394875744,1764047560965,690.05224581,7.125e-05,2]
[394875745,1764047561001,690.05224581,7.125e-05,2]
[394875746,1764047561037,690.05224581,7.125e-05,2]
[394875747,1764047561082,690.05224581,7.125e-05,2]
[394875748,1764047561121,690.05224581,7.125e-05,2]
[394875749,1764047561164,690.05224581,7.125e-05,2]
[394875750,1764047561208,690.05224581,7.125e-05,2]
[394875751,1764047561244,690.05224581,7.125e-05,2]
[394875752,1764047561293,219.42670538,7.125e-05,2]
[394875753,1764047561323,470.62554043,7.125e-05,2]
[394875754,1764047561361,690.05224581,7.125e-05,2]
[394875755,1764047561402,690.05224581,7.125e-05,2]
[394875756,1764047561441,690.05224581,7.125e-05,2]
[394875757,1764047561479,690.05224581,7.125e-05,2]
[394875758,1764047561518,690.05224581,7.125e-05,2]
[394875759,1764047561563,690.05224581,7.125e-05,2]
[394875760,1764047561600,690.05224581,7.125e-05,2]
[394875761,1764047561636,690.05224581,7.125e-05,2]
[394875762,1764047561674,690.05224581,7.125e-05,2]
[394875763,1764047561713,690.05224581,7.125e-05,2]
[394875764,1764047561752,690.05224581,7.125e-05,2]
[394875765,1764047561834,690.05224581,7.125e-05,2]
[394875767,1764047570325,1200.0,7.125e-05,2]
[394875768,1764047582727,48.75750985,7.125e-05,2]
[394875769,1764047582754,251.24249015,7.125e-05,2]
[394875770,1764047589580,500.0,7.126e-05,2]
[394875774,1764047642358,300.0,7.125e-05,2]
[394875775,1764047643055,-330.67732401,7.126e-05,2]
[394875776,1764047655719,228.93448887,7.055e-05,2]
[394875777,1764047701286,300.0,7.125e-05,2]
[394875778,1764047702009,300.0,7.125e-05,2]
[394875779,1764047702101,300.0,7.125e-05,2]
[394875780,1764047702220,259.0,7.125e-05,2]
[394875781,1764047702335,1200.0,7.125e-05,2]
[394875783,1764047741159,500.0,7.125e-05,2]
[394875784,1764047741395,500.0,7.125e-05,2]
[394875785,1764047741436,500.0,7.125e-05,2]
[394875786,1764047741493,500.0,7.125e-05,2]
[394875787,1764047741543,500.0,7.125e-05,2]
[394875788,1764047741591,500.0,7.125e-05,2]
[394875789,1764047741628,500.0,7.125e-05,2]
[394875790,1764047741664,500.0,7.125e-05,2]
[394875791,1764047741723,500.0,7.125e-05,2]
[394875792,1764047741770,500.0,7.125e-05,2]
[394875793,1764047741812,500.0,7.125e-05,2]
[394875794,1764047741849,500.0,7.125e-05,2]
[394875795,1764047741891,360.83302098,7.125e-05,2]
[394875796,1764047741921,139.16697902,7.125e-05,2]
[394875797,1764047741967,500.0,7.125e-05,2]
[394875798,1764047742014,405.32923769,7.125e-05,2]
[394875799,1764047742069,500.0,7.125e-05,2]
[394875800,1764047742107,500.0,7.125e-05,2]
[394875802,1764047762344,300.0,7.125e-05,2]
[394875804,1764047822455,300.0,7.125e-05,2]
[394875805,1764047841201,7355.51378329,7.026e-05,2]
[394875806,1764047841227,10000.01,7.026e-05,2]
[394875807,1764047841251,10000.01,7.026e-05,2]
[394875808,1764047841278,10000.01,7.026e-05,2]
[394875809,1764047841303,10000.01,7.026e-05,2]
[394875810,1764047841329,10000.01,7.026e-05,2]
[394875813,1764047978659,-217.36372703,6.886e-05,2]
[394875815,1764047993650,-82.63627297,6.886e-05,2]
[394875816,1764047993947,-247.51813312,6.921e-05,2]
[394875817,1764047995794,-5.0946517,6.921e-05,2]
[394875818,1764047995817,-214.76443502,6.955e-05,2]
[394875819,1764047997319,-152.23556498,6.955e-05,2]
[394875820,1764047997345,-0.72460257,6.955e-05,2]
[394875821,1764047998837,-214.45717503,6.955e-05,2]
[394875822,1764048001508,-84.8182224,6.955e-05,2]
[394875823,1764048001530,-117.41840646,6.955e-05,2]
[394875825,1764048003611,-113.58159354,6.955e-05,2]
[394875826,1764048003633,-166.55931974,6.955e-05,2]
[394875828,1764048005112,-133.44068026,6.955e-05,2]
[394875829,1764048005137,-266.0,6.955e-05,2]
[394875830,1764048005159,-26.91119712,6.955e-05,2]
[394875834,1764048007134,-211.43809544,6.955e-05,2]
[394875835,1764048009143,-151.65450905,6.955e-05,2]
[394875836,1764048013170,-164.87319919,6.955e-05,2]
[394875838,1764048015531,-291.64286549,6.955e-05,2]
[394875840,1764048019906,-233.33112594,6.955e-05,2]
[394875841,1764048021538,-120.14900777,6.955e-05,2]
[394875842,1764048021562,-202.95329343,6.956e-05,2]
[394875843,1764048024138,-169.84559391,6.885e-05,2]
[394875848,1764048025739,-183.6345398,6.885e-05,2]
[394875849,1764048025762,-216.37427149,6.956e-05,2]
[394875853,1764048029284,-168.11075791,6.956e-05,2]
[394875854,1764048030808,-300.0,6.956e-05,2]
[394875865,1764048200465,-312.59881525,6.817e-05,2]
[394875866,1764048200488,-17.95301613,6.886e-05,2]
[394875869,1764048239168,550.51379912,6.749e-05,2]
[394875882,1764048533630,-183.55548775,6.615e-05,2]
[394875883,1764048563582,-217.64699399,6.615e-05,2]
[394875884,1764048566981,-149.31131738,6.615e-05,2]
[394875885,1764048567005,-106.6462722,6.682e-05,2]
[394875886,1764048593595,-151.09398994,6.549e-05,2]
[394875887,1764048595156,-225.48610451,6.549e-05,2]
[394875888,1764048597757,-67.28743247,6.549e-05,2]
[394875889,1764048597779,-177.65325322,6.615e-05,2]
[394875890,1764048599288,-266.2142737,6.615e-05,2]
[394875891,1764048599311,-133.53986337,6.783e-05,2]
[394875892,1764048601500,-118.46119208,6.783e-05,2]
[394875893,1764048601523,-250.21289261,6.886e-05,2]
[394875914,1764048631594,-5.65510739,6.886e-05,2]
[394875915,1764048631603,-246.96103434,6.944e-05,2]
[394875916,1764048631613,-300.0,7.002e-05,2]
[394875917,1764048631622,-846.0,7.002e-05,2]
[394875918,1764048631632,-357.35662424,7.003e-05,2]
[394875919,1764048631642,-503.4114239,7.003e-05,2]
[394875920,1764048631651,-500.0,7.003e-05,2]
[394875921,1764048631660,-500.0,7.003e-05,2]
[394875922,1764048631669,-189.28420093,7.003e-05,2]
[394875933,1764048637654,-310.71579907,7.003e-05,2]
[394875934,1764048637664,-519.16511234,7.003e-05,2]
[394875935,1764048637675,-500.0,7.003e-05,2]
[394875936,1764048637685,-500.0,7.003e-05,2]
[394875937,1764048637696,-500.0,7.003e-05,2]
[394875938,1764048637706,-258.361492,7.022e-05,2]
[394875939,1764048637715,-500.0,7.025e-05,2]
[394875940,1764048637725,-370.64014074,7.025e-05,2]
[394875941,1764048637735,-500.0,7.025e-05,2]
[394875942,1764048637744,-210.55978494,7.025e-05,2]
[394875943,1764048637754,-500.0,7.025e-05,2]
[394875944,1764048637763,-298.237778,7.025e-05,2]
[394875950,1764048643933,-500.0,6.933e-05,2]
[394875952,1764048644322,-3e-08,6.933e-05,2]
[394875953,1764048644573,-142.03060211,6.933e-05,2]
[394875965,1764048653680,-270.10764865,6.795e-05,2]
[394875966,1764048653701,-236.46266306,6.864e-05,2]
[394875967,1764048656387,-33.64498559,6.864e-05,2]
[394875968,1764048656410,-175.45275805,6.933e-05,2]
[394875969,1764048659550,-424.88967233,6.933e-05,2]
[394875970,1764048662317,-176.22626387,6.933e-05,2]
[394875971,1764048665289,-167.41838742,6.933e-05,2]
[394875972,1764048666788,-295.25583987,6.933e-05,2]
[394875973,1764048670806,-183.34281655,6.933e-05,2]
[394875974,1764048674832,-205.83282348,6.933e-05,2]
[394875975,1764048676236,265.26457118,6.864e-05,2]
[394875976,1764048676446,-59.4317477,6.933e-05,2]
[394875977,1764048676468,-97.49804935,7.024e-05,2]
[394875978,1764048678866,-202.50195065,7.024e-05,2]
[394875979,1764048678896,-81.16543094,7.025e-05,2]
[394875980,1764048696124,-188.92525109,6.933e-05,2]
[394875981,1764048699205,-332.51768225,6.933e-05,2]
[394875982,1764048700773,1312.98635231,6.864e-05,2]
[394875983,1764048700801,-234.76481718,6.933e-05,2]
[394875984,1764048702734,204.695,6.886e-05,2]
[394875985,1764048702764,-174.04848096,6.933e-05,2]
[394875986,1764048704290,-266.47809034,6.933e-05,2]
[394875987,1764048706388,-305.17728158,6.933e-05,2]
[394875988,1764048706411,-5.89746733,7.003e-05,2]
[394875989,1764048708367,305.17728158,6.864e-05,2]
[394875990,1764048708474,-270.62164725,7.003e-05,2]
[394875991,1764048710989,-223.48088542,7.003e-05,2]
[394875992,1764048711027,-128.96997159,7.003e-05,2]
[394875993,1764048712903,-167.48231775,7.003e-05,2]
[394875995,1764048716622,-203.54771066,7.003e-05,2]
[394875996,1764048716645,-6.49534332,7.003e-05,2]
[394875997,1764048718259,-154.46720897,7.003e-05,2]
[394875998,1764048721942,-271.61691028,7.003e-05,2]
[394875999,1764048722350,300.0,7.002e-05,2]
[394876000,1764048723602,-69.33214083,7.003e-05,2]
[394876001,1764048723624,-98.06461675,7.003e-05,2]
[394876002,1764048724480,3172.48310342,6.933e-05,2]
[394876003,1764048725726,-66.79051767,7.003e-05,2]
[394876004,1764048725748,-104.29837255,7.003e-05,2]
[394876005,1764048728904,-300.0,7.003e-05,2]
[394876006,1764048732077,-220.91308645,7.003e-05,2]
[394876007,1764048732320,3547.36065038,6.933e-05,2]
[394876008,1764048733583,-22.96880019,7.003e-05,2]
[394876009,1764048733604,-258.87459122,7.003e-05,2]
[394876010,1764048735154,-243.54889201,7.003e-05,2]
[394876011,1764048735175,-56.45110799,7.003e-05,2]
[394876012,1764048737036,-289.95694602,7.003e-05,2]
[394876013,1764048740845,-153.59194599,7.003e-05,2]
[394876014,1764048740867,-255.53965509,7.003e-05,2]
[394876015,1764048743511,-245.51562542,7.003e-05,2]
[394876016,1764048743534,-20.73381673,7.003e-05,2]
[394876017,1764048745329,-408.24363004,7.003e-05,2]
[394876018,1764048746871,-71.02255323,7.003e-05,2]
[394876019,1764048746901,-82.61954089,7.003e-05,2]
[394876020,1764048747572,1071.02255323,6.933e-05,2]
[394876021,1764048748666,-155.7719901,7.003e-05,2]
[394876022,1764048751705,-261.60846901,7.003e-05,2]
[394876023,1764048751732,-38.39153099,7.003e-05,2]
[394876024,1764048753715,-304.52639219,7.003e-05,2]
[394876025,1764048755382,1909.14369297,6.933e-05,2]
[394876026,1764048755404,100.38924086,6.933e-05,2]
[394876027,1764048756195,714.7666584,6.5e-05,120]
[394876028,1764048756217,315.0,6.5e-05,120]
[394876029,1764048756247,9193.2333416,6.5e-05,120]
[394876030,1764048756319,-157.08207682,7.003e-05,2]
[394876031,1764048756341,-132.08999814,7.003e-05,2]
[394876032,1764048757629,-220.36085887,7.003e-05,2]
[394876033,1764048757663,-500.0,7.003e-05,2]
[394876034,1764048757694,-500.0,7.003e-05,2]
[394876035,1764048757722,-500.0,7.003e-05,2]
[394876036,1764048757758,-120.59679106,7.025e-05,2]
[394876037,1764048757793,-500.0,7.025e-05,2]
[394876038,1764048757829,-500.0,7.025e-05,2]
[394876039,1764048757865,-500.0,7.025e-05,2]
[394876040,1764048757900,-486.86446883,7.025e-05,2]
[394876041,1764048757935,-500.0,7.025e-05,2]
[394876042,1764048757971,-500.0,7.025e-05,2]
[394876043,1764048758182,-500.0,7.025e-05,2]
[394876044,1764048758217,-500.0,7.025e-05,2]